[Event "DVM U12w 2024"]
[Site "Bad Homburg"]
[Date "2024.12.29"]
[Round "5"]
[White "Didas, Emma"]
[Black "Lao, Theodora Siyuan"]
[Result "0-1"]
[ECO "C55"]
[WhiteElo "1456"]
[BlackElo "1170"]
[Annotator "NA"]
[PlyCount "120"]
[EventDate "2024.12.23"]
[EventType "team-tourn"]
[EventRounds "7"]
[EventCountry "GER"]
[SourceTitle "playchess.com"]
[Source "ChessBase"]
[SourceQuality "1"]
[TimeControl "40/5400+30:1800+30"]

1. e4 {[%emt 0:00:02]} e5 {[%emt 0:00:01]} 2. Nf3 {[%emt 0:00:05]} Nc6 {[%emt 0:00:06]} 3. Bc4 {[%emt 0:00:05]} Nf6 {[%emt 0:00:06]} 4. d3 {[%emt 0:00:03]} Be7 {[%emt 0:00:41]} 5. c3 {[%emt 0:03:17]} b6 {[%emt 0:01:34]} 6. O-O {[%emt 0:01:27]} h6 {[%emt 0:00:43]} 7. Bd5 {[%emt 0:03:28]} Bb7 {[%emt 0:00:59]} 8. Nxe5 {[%emt 0:01:05]} O-O {[%emt 0:01:52]} 9. Nxc6 {[%emt 0:01:18]} Bxc6 {[%emt 0:01:18]} 10. Bxc6 {[%emt 0:01:11]} dxc6 {[%emt 0:00:10]} 11. e5 {[%emt 0:03:09]} Nd7 {[%emt 0:01:06]} 12. d4 {[%emt 0:00:19]} c5 {[%emt 0:00:48]} 13. Qg4 {[%emt 0:02:51]} Bg5 {[%emt 0:01:27]} 14. Bxg5 {[%emt 0:00:58]} hxg5 {[%emt 0:00:32]} 15. f4 {[%emt 0:01:44]} gxf4 {[%emt 0:01:27]} 16. Rxf4 {[%emt 0:00:41]} cxd4 {[%emt 0:00:32]} 17. cxd4 {[%emt 0:00:42]} c5 {[%emt 0:00:44]} 18. Nc3 {[%emt 0:06:09]} cxd4 {[%emt 0:00:33]} 19. Rxd4 {[%emt 0:00:27]} Nxe5 {[%emt 0:00:51]} 20. Qe4 {[%emt 0:00:59]} Qe7 {[%emt 0:02:23]} 21. Nd5 {[%emt 0:01:37]} Qd6 {[%emt 0:01:50]} 22. Nxb6 {[%emt 0:02:23]} Qxb6 {[%emt 0:00:31]} 23. Qxe5 {[%emt 0:00:15]} Rad8 {[%emt 0:00:22]} 24. Rad1 {[%emt 0:00:47]} Rxd4 {[%emt 0:00:49]} 25. Qxd4 {[%emt 0:00:41]} Qb7 {[%emt 0:02:45]} 26. Rd3 {[%emt 0:01:42]} Qe7 {[%emt 0:02:48]} 27. Re3 {[%emt 0:01:34]} Qc7 {[%emt 0:01:26]} 28. h3 {[%emt 0:01:22]} Rd8 {[%emt 0:01:35]} 29. Qh4 {[%emt 0:02:38]} Qb6 {[%emt 0:01:19]} 30. Kf2 {[%emt 0:07:21]} Re8 {[%emt 0:03:10]} 31. Qf4 {[%emt 0:02:18]} Rxe3 {[%emt 0:01:14]} 32. Qxe3 {[%emt 0:00:07]} Qxb2+ {[%emt 0:00:16]} 33. Qe2 {[%emt 0:00:17]} Qb6+ {[%emt 0:01:14]} 34. Kg3 {[%emt 0:00:48]} Qd6+ {[%emt 0:00:42]} 35. Kf2 {[%emt 0:00:12]} Qd4+ {[%emt 0:00:59]} 36. Qe3 {[%emt 0:00:40]} Qf6+ {[%emt 0:00:39]} 37. Ke2 {[%emt 0:01:10]} Qa6+ {[%emt 0:00:25]} 38. Kf3 {[%emt 0:00:19]} Qxa2 {[%emt 0:00:32]} 39. Qe8+ {[%emt 0:00:12]} Kh7 {[%emt 0:00:10]} 40. Qe4+ {[%emt 0:00:13]} Kh6 {[%emt 0:01:16]} 41. Qf4+ {[%emt 0:30:50]} Kg6 {[%emt 0:31:27]} 42. Qg4+ {[%emt 0:00:47]} Kf6 {[%emt 0:00:19]} 43. Qf4+ {[%emt 0:01:06]} Ke6 {[%emt 0:00:11]} 44. Qe4+ {[%emt 0:00:31]} Kd6 {[%emt 0:00:29]} 45. Qf4+ {[%emt 0:00:51]} Kc6 {[%emt 0:00:24]} 46. Qc1+ {[%emt 0:01:16]} Kb6 {[%emt 0:00:45]} 47. Qe3+ {[%emt 0:00:22]} Kb5 {[%emt 0:01:28]} 48. Qe5+ {[%emt 0:00:26]} Kb6 {[%emt 0:00:30]} 49. Qxg7 {[%emt 0:00:25]} Qd5+ {[%emt 0:00:37]} 50. Kf4 {[%emt 0:01:08]} Qd6+ {[%emt 0:00:22]} 51. Kf5 {[%emt 0:01:18]} Qd5+ {[%emt 0:01:06]} 52. Kf4 {[%emt 0:00:34]} Qd2+ {[%emt 0:00:51]} 53. Kf5 {[%emt 0:01:24]} Qf2+ {[%emt 0:00:27]} 54. Ke4 {[%emt 0:00:25]} f5+ {[%emt 0:00:29]} 55. Ke5 {[%emt 0:00:25]} Qb2+ {[%emt 0:00:20]} 56. Kxf5 {[%emt 0:00:49]} Qxg7 {[%emt 0:00:14]} 57. g4 {[%emt 0:00:40]} Qh7+ {[%emt 0:00:16]} 58. Kf6 {[%emt 0:00:09]} Qxh3 {[%emt 0:00:07]} 59. g5 {[%emt 0:00:04]} a5 {[%emt 0:00:22]} 60. g6 {[%emt 0:00:03]} Qg4 {[%emt 0:00:16]} 0-1

[Event "DVM U12w 2024"]
[Site "Bad Homburg"]
[Date "2024.12.29"]
[Round "5"]
[White "Raghavan, Madhushri"]
[Black "Subocz, Emma"]
[Result "0-1"]
[ECO "D35"]
[WhiteElo "1410"]
[BlackElo "1106"]
[Annotator "NA"]
[PlyCount "117"]
[EventDate "2024.12.23"]
[EventType "team-tourn"]
[EventRounds "7"]
[EventCountry "GER"]
[SourceTitle "playchess.com"]
[Source "ChessBase"]
[SourceQuality "1"]
[TimeControl "40/5400+30:1800+30"]

1. d4 {[%emt 0:00:33]} d5 {[%emt 0:00:07]} 2. c4 {[%emt 0:00:22]} e6 {[%emt 0:00:07]} 3. Nc3 {[%emt 0:00:37]} Nf6 {[%emt 0:00:12]} 4. Bg5 {[%emt 0:00:34]} Nbd7 {[%emt 0:00:21]} 5. cxd5 {[%emt 0:00:21]} exd5 {[%emt 0:00:17]} 6. Nxd5 {[%emt 0:01:21]} Nxd5 {[%emt 0:00:18]} 7. Bxd8 {[%emt 0:01:49]} Bb4+ {[%emt 0:00:10]} 8. Qd2 {[%emt 0:01:07]} Bxd2+ {[%emt 0:00:07]} 9. Kxd2 {[%emt 0:00:27]} Kxd8 {[%emt 0:00:09]} 10. Rd1 {[%emt 0:01:46]} b6 {[%emt 0:00:43]} 11. Kc1 {[%emt 0:00:44]} Bb7 {[%emt 0:00:19]} 12. Nf3 {[%emt 0:01:45]} Nb4 {[%emt 0:01:25]} 13. a3 {[%emt 0:02:12]} Nd5 {[%emt 0:00:12]} 14. Ne5 {[%emt 0:01:24]} Nxe5 {[%emt 0:00:13]} 15. dxe5 {[%emt 0:00:16]} Ke7 {[%emt 0:00:11]} 16. h4 {[%emt 0:02:28]} Rhc8 {[%emt 0:00:24]} 17. h5 {[%emt 0:00:24]} h6 {[%emt 0:00:01]} 18. Rh4 {[%emt 0:01:06]} c5 {[%emt 0:00:39]} 19. Rg4 {[%emt 0:03:03]} Kf8 {[%emt 0:00:10]} 20. Rd3 {[%emt 0:01:11]} Rc7 {[%emt 0:00:42]} 21. e4 {[%emt 0:01:46]} Ne7 {[%emt 0:00:44]} 22. Rdg3 {[%emt 0:00:46]} g6 {[%emt 0:00:12]} 23. hxg6 {[%emt 0:02:13]} fxg6 {[%emt 0:00:10]} 24. Rf4+ {[%emt 0:01:36]} Kg7 {[%emt 0:00:12]} 25. Bc4 {[%emt 0:01:53]} Nc6 {[%emt 0:00:32]} 26. Rf5 {[%emt 0:02:38]} Nd4 {[%emt 0:03:18]} 27. Rf4 {[%emt 0:03:42]} a6 {[%emt 0:00:25]} 28. Kd2 {[%emt 0:03:34]} Rd8 {[%emt 0:00:34]} 29. Ke1 {[%emt 0:01:46]} b5 {[%emt 0:01:59]} 30. Bd3 {[%emt 0:01:09]} c4 {[%emt 0:00:34]} 31. Bb1 {[%emt 0:00:38]} Rcd7 {[%emt 0:00:14]} 32. Rf6 {[%emt 0:01:32]} g5 {[%emt 0:03:44]} 33. f4 {[%emt 0:01:54]} Nb3 {[%emt 0:07:30]} 34. Kf2 {[%emt 0:05:03]} Rd2+ {[%emt 0:00:21]} 35. Kf3 {[%emt 0:01:32]} R8d7 {[%emt 0:06:05]} 36. fxg5 {[%emt 0:00:56]} hxg5 {[%emt 0:01:32]} 37. Rxg5+ {[%emt 0:00:44]} Kh8 {[%emt 0:00:07]} 38. e6 {[%emt 0:04:46]} Re7 {[%emt 0:02:05]} 39. Rh5+ {[%emt 0:02:09]} Kg7 {[%emt 0:00:21]} 40. Rf7+ {[%emt 0:01:31]} Rxf7+ {[%emt 0:00:49]} 41. exf7 {[%emt 0:30:16]} Bxe4+ {[%emt 0:31:13]} 42. Bxe4 {[%emt 0:02:34]} Kxf7 {[%emt 0:00:24]} 43. Rh7+ {[%emt 0:03:37]} Kg8 {[%emt 0:00:21]} 44. Ra7 {[%emt 0:05:55]} a5 {[%emt 0:00:15]} 45. Rb7 {[%emt 0:01:38]} Rxb2 {[%emt 0:00:10]} 46. Rxb5 {[%emt 0:00:26]} Nd4+ {[%emt 0:00:11]} 47. Ke3 {[%emt 0:00:36]} Nxb5 {[%emt 0:00:10]} 48. Bd5+ {[%emt 0:00:57]} Kg7 {[%emt 0:00:27]} 49. Bxc4 {[%emt 0:00:00]} Nxa3 {[%emt 0:00:13]} 50. Bd5 {[%emt 0:00:00]} Nb5 {[%emt 0:00:31]} 51. Be4 {[%emt 0:00:00]} a4 {[%emt 0:00:08]} 52. Bd5 {[%emt 0:00:58]} a3 {[%emt 0:00:30]} 53. g4 {[%emt 0:00:26]} Nc3 {[%emt 0:00:08]} 54. Bc4 {[%emt 0:00:38]} Rb4 {[%emt 0:00:47]} 55. Be6 {[%emt 0:01:23]} Re4+ {[%emt 0:00:15]} 56. Kd3 {[%emt 0:00:19]} Rxe6 {[%emt 0:00:04]} 57. Kxc3 {[%emt 0:00:18]} Rb6 {[%emt 0:00:06]} 58. Kc4 {[%emt 0:00:18]} a2 {[%emt 0:00:08]} 59. Kc5 {[%emt 0:00:26]} 0-1

[Event "DVM U12w 2024"]
[Site "Bad Homburg"]
[Date "2024.12.29"]
[Round "5"]
[White "Naz Öksüz, Meryem"]
[Black "Daaboul, Ulla"]
[Result "1-0"]
[ECO "B34"]
[WhiteElo "1296"]
[BlackElo "787"]
[Annotator "NA"]
[PlyCount "30"]
[EventDate "2024.12.23"]
[EventType "team-tourn"]
[EventRounds "7"]
[EventCountry "GER"]
[SourceTitle "playchess.com"]
[Source "ChessBase"]
[SourceQuality "1"]
[TimeControl "40/5400+30:1800+30"]

1. e4 {[%emt 0:00:25]} c5 {[%emt 0:00:05]} 2. Nf3 {[%emt 0:00:13]} d6 {[%emt 0:00:07]} 3. d4 {[%emt 0:00:49]} cxd4 {[%emt 0:00:07]} 4. Nxd4 {[%emt 0:00:13]} Nc6 {[%emt 0:00:19]} 5. Nc3 {[%emt 0:00:14]} g6 {[%emt 0:00:11]} 6. Be3 {[%emt 0:01:19]} Bg7 {[%emt 0:00:12]} 7. Qd2 {[%emt 0:00:50]} a6 {[%emt 0:00:57]} 8. O-O-O {[%emt 0:00:38]} Ne5 {[%emt 0:00:28]} 9. h3 {[%emt 0:00:57]} Nc4 {[%emt 0:00:40]} 10. Bxc4 {[%emt 0:00:18]} b5 {[%emt 0:00:20]} 11. Bd5 {[%emt 0:00:47]} Rb8 {[%emt 0:00:36]} 12. Nc6 {[%emt 0:00:55]} Qc7 {[%emt 0:00:56]} 13. Nxb8 {[%emt 0:00:26]} Qxb8 {[%emt 0:00:07]} 14. Bc6+ {[%emt 0:01:01]} Bd7 {[%emt 0:00:32]} 15. Bxd7+ {[%emt 0:00:37]} Kxd7 {[%emt 0:00:05]} 1-0

[Event "DVM U12w 2024"]
[Site "Bad Homburg"]
[Date "2024.12.29"]
[Round "5"]
[White "Kotliarova, Emily"]
[Black "Henn, Lena"]
[Result "1/2-1/2"]
[ECO "B09"]
[WhiteElo "1139"]
[BlackElo "808"]
[Annotator "NA"]
[PlyCount "32"]
[EventDate "2024.12.23"]
[EventType "team-tourn"]
[EventRounds "7"]
[EventCountry "GER"]
[SourceTitle "playchess.com"]
[Source "ChessBase"]
[SourceQuality "1"]
[TimeControl "40/5400+30:1800+30"]

1. e4 {[%emt 0:00:01]} d6 {[%emt 0:00:04]} 2. d4 {[%emt 0:00:04]} Nf6 {[%emt 0:00:05]} 3. Nc3 {[%emt 0:00:06]} g6 {[%emt 0:00:06]} 4. f4 {[%emt 0:00:11]} c6 {[%emt 0:00:32]} 5. e5 {[%emt 0:00:39]} dxe5 {[%emt 0:00:18]} 6. fxe5 {[%emt 0:00:22]} Nfd7 {[%emt 0:01:13]} 7. Nf3 {[%emt 0:01:20]} Bg7 {[%emt 0:01:26]} 8. Bc4 {[%emt 0:00:53]} O-O {[%emt 0:01:00]} 9. O-O {[%emt 0:00:35]} Nb6 {[%emt 0:08:01]} 10. Bb3 {[%emt 0:00:48]} Nd5 {[%emt 0:03:49]} 11. Nxd5 {[%emt 0:13:38]} cxd5 {[%emt 0:00:45]} 12. c4 {[%emt 0:01:19]} dxc4 {[%emt 0:06:00]} 13. Bxc4 {[%emt 0:00:21]} Qc7 {[%emt 0:07:56]} 14. b3 {[%emt 0:05:59]} Kh8 {[%emt 0:06:14]} 15. Ng5 {[%emt 0:16:28]} f6 {[%emt 0:01:05]} 16. Nf7+ {[%emt 0:15:23]} Kg8 {[%emt 0:01:47]} 1/2-1/2

[Event "DVM U12w 2024"]
[Site "Bad Homburg"]
[Date "2024.12.29"]
[Round "5"]
[White "Doberchak, Emily Alice"]
[Black "Wang, Lexin Selina"]
[Result "1-0"]
[ECO "C64"]
[WhiteElo "1106"]
[BlackElo "920"]
[Annotator "NA"]
[PlyCount "65"]
[EventDate "2024.12.23"]
[EventType "team-tourn"]
[EventRounds "7"]
[EventCountry "GER"]
[SourceTitle "playchess.com"]
[Source "ChessBase"]
[SourceQuality "1"]
[TimeControl "40/5400+30:1800+30"]

1. e4 {[%emt 0:00:03]} e5 {[%emt 0:00:04]} 2. Nf3 {[%emt 0:00:06]} Nc6 {[%emt 0:00:06]} 3. c3 {[%emt 0:00:31]} Bc5 {[%emt 0:01:37]} 4. d4 {[%emt 0:01:34]} exd4 {[%emt 0:00:28]} 5. cxd4 {[%emt 0:00:31]} Bb4+ {[%emt 0:00:12]} 6. Bd2 {[%emt 0:00:23]} Bxd2+ {[%emt 0:00:12]} 7. Nbxd2 {[%emt 0:00:31]} d6 {[%emt 0:08:35]} 8. Bb5 {[%emt 0:00:24]} Nf6 {[%emt 0:01:22]} 9. d5 {[%emt 0:01:05]} Bd7 {[%emt 0:00:39]} 10. dxc6 {[%emt 0:00:22]} bxc6 {[%emt 0:01:27]} 11. Bd3 {[%emt 0:01:16]} O-O {[%emt 0:00:33]} 12. O-O {[%emt 0:00:12]} Re8 {[%emt 0:03:29]} 13. Re1 {[%emt 0:00:50]} Bg4 {[%emt 0:05:53]} 14. h3 {[%emt 0:01:16]} Bxf3 {[%emt 0:05:51]} 15. Nxf3 {[%emt 0:00:31]} Nd7 {[%emt 0:04:55]} 16. Rc1 {[%emt 0:02:13]} c5 {[%emt 0:03:17]} 17. Bb5 {[%emt 0:01:36]} Rb8 {[%emt 0:00:40]} 18. Bxd7 {[%emt 0:00:37]} Qxd7 {[%emt 0:00:08]} 19. b3 {[%emt 0:00:11]} Re7 {[%emt 0:01:02]} 20. e5 {[%emt 0:00:57]} d5 {[%emt 0:00:30]} 21. Rxc5 {[%emt 0:01:29]} Rb5 {[%emt 0:04:52]} 22. Rxb5 {[%emt 0:01:10]} Qxb5 {[%emt 0:00:07]} 23. Qe2 {[%emt 0:01:02]} Qe8 {[%emt 0:01:21]} 24. Qd3 {[%emt 0:00:50]} c6 {[%emt 0:01:04]} 25. Ng5 {[%emt 0:01:01]} Rxe5 {[%emt 0:00:41]} 26. Qxh7+ {[%emt 0:00:13]} Kf8 {[%emt 0:01:40]} 27. Qh8+ {[%emt 0:00:11]} Ke7 {[%emt 0:00:41]} 28. Rxe5+ {[%emt 0:00:20]} Kf6 {[%emt 0:01:31]} 29. Qxe8 {[%emt 0:00:33]} Kg6 {[%emt 0:00:12]} 30. Qxc6+ {[%emt 0:00:26]} f6 {[%emt 0:00:08]} 31. Rxd5 {[%emt 0:00:13]} Kh5 {[%emt 0:00:57]} 32. g4+ {[%emt 0:00:53]} Kh4 {[%emt 0:00:08]} 33. Nf3+ {[%emt 0:00:24]} 1-0

[Event "DVM U12w 2024"]
[Site "Bad Homburg"]
[Date "2024.12.29"]
[Round "5"]
[White "Slowik, Anna"]
[Black "Ulianova, Anna"]
[Result "1-0"]
[ECO "C56"]
[WhiteElo "1103"]
[BlackElo "1267"]
[Annotator "NA"]
[PlyCount "37"]
[EventDate "2024.12.23"]
[EventType "team-tourn"]
[EventRounds "7"]
[EventCountry "GER"]
[SourceTitle "playchess.com"]
[Source "ChessBase"]
[SourceQuality "1"]
[TimeControl "40/5400+30:1800+30"]

1. e4 {[%emt 0:00:03]} e5 {[%emt 0:00:03]} 2. Nf3 {[%emt 0:00:06]} Nc6 {[%emt 0:00:05]} 3. Bc4 {[%emt 0:00:07]} Bc5 {[%emt 0:00:13]} 4. O-O {[%emt 0:00:09]} Nf6 {[%emt 0:00:22]} 5. d4 {[%emt 0:00:11]} exd4 {[%emt 0:00:18]} 6. e5 {[%emt 0:00:08]} Ne4 {[%emt 0:00:05]} 7. Qe2 {[%emt 0:00:47]} d5 {[%emt 0:07:27]} 8. exd6 {[%emt 0:00:19]} Bf5 {[%emt 0:02:34]} 9. dxc7 {[%emt 0:02:48]} Qxc7 {[%emt 0:00:50]} 10. Nbd2 {[%emt 0:01:08]} O-O {[%emt 0:03:36]} 11. Nxe4 {[%emt 0:01:27]} Rae8 {[%emt 0:01:40]} 12. Bd3 {[%emt 0:04:43]} Bxe4 {[%emt 0:01:41]} 13. Bxe4 {[%emt 0:01:00]} Qe7 {[%emt 0:02:58]} 14. Re1 {[%emt 0:01:24]} Bb4 {[%emt 0:26:31]} 15. Bd2 {[%emt 0:03:22]} Qd7 {[%emt 0:05:09]} 16. Qd3 {[%emt 0:04:05]} Bxd2 {[%emt 0:00:52]} 17. Qxd2 {[%emt 0:01:22]} f5 {[%emt 0:00:56]} 18. Bd3 {[%emt 0:02:02]} Qd5 {[%emt 0:03:00]} 19. b3 {[%emt 0:03:01]} 1-0

[Event "DVM U12w 2024"]
[Site "Bad Homburg"]
[Date "2024.12.29"]
[Round "5"]
[White "Rutschmann, Polly"]
[Black "Du, Vivian"]
[Result "0-1"]
[ECO "C50"]
[WhiteElo "1072"]
[BlackElo "1144"]
[Annotator "NA"]
[PlyCount "58"]
[EventDate "2024.12.23"]
[EventType "team-tourn"]
[EventRounds "7"]
[EventCountry "GER"]
[SourceTitle "playchess.com"]
[Source "ChessBase"]
[SourceQuality "1"]
[TimeControl "40/5400+30:1800+30"]

1. e4 {[%emt 0:00:05]} e5 {[%emt 0:00:06]} 2. Nf3 {[%emt 0:00:13]} Nc6 {[%emt 0:00:08]} 3. Bc4 {[%emt 0:00:30]} Bc5 {[%emt 0:00:11]} 4. Nc3 {[%emt 0:00:21]} Nf6 {[%emt 0:00:37]} 5. d3 {[%emt 0:00:37]} d6 {[%emt 0:00:11]} 6. Bd2 {[%emt 0:01:16]} Bg4 {[%emt 0:01:02]} 7. h3 {[%emt 0:00:58]} Bh5 {[%emt 0:00:11]} 8. g4 {[%emt 0:00:42]} Bg6 {[%emt 0:00:07]} 9. Bg5 {[%emt 0:00:41]} h6 {[%emt 0:00:48]} 10. Bh4 {[%emt 0:01:01]} a6 {[%emt 0:01:32]} 11. Nd5 {[%emt 0:02:32]} Nd4 {[%emt 0:02:01]} 12. Nxd4 {[%emt 0:01:48]} Bxd4 {[%emt 0:00:25]} 13. c3 {[%emt 0:01:23]} Ba7 {[%emt 0:00:29]} 14. Qb3 {[%emt 0:01:56]} b5 {[%emt 0:01:37]} 15. Nxf6+ {[%emt 0:00:21]} gxf6 {[%emt 0:00:23]} 16. Bd5 {[%emt 0:00:31]} Rb8 {[%emt 0:00:51]} 17. Rf1 {[%emt 0:03:21]} h5 {[%emt 0:01:44]} 18. f4 {[%emt 0:02:54]} hxg4 {[%emt 0:01:23]} 19. Bg3 {[%emt 0:02:37]} Rxh3 {[%emt 0:01:21]} 20. Bf2 {[%emt 0:02:14]} Bxf2+ {[%emt 0:00:59]} 21. Rxf2 {[%emt 0:00:15]} g3 {[%emt 0:00:26]} 22. Rg2 {[%emt 0:02:00]} Rh1+ {[%emt 0:00:26]} 23. Kd2 {[%emt 0:00:31]} Rxa1 {[%emt 0:00:14]} 24. Rxg3 {[%emt 0:00:38]} exf4 {[%emt 0:01:21]} 25. Rh3 {[%emt 0:00:29]} Ke7 {[%emt 0:01:41]} 26. Rf3 {[%emt 0:01:57]} Qh8 {[%emt 0:01:09]} 27. Rxf4 {[%emt 0:00:50]} Qh2+ {[%emt 0:00:17]} 28. Ke3 {[%emt 0:01:09]} Re1+ {[%emt 0:00:24]} 29. Kd4 {[%emt 0:00:26]} Qxf4 {[%emt 0:00:18]} 0-1

[Event "DVM U12w 2024"]
[Site "Bad Homburg"]
[Date "2024.12.29"]
[Round "5"]
[White "Zietz, Leni"]
[Black "Markl, Paula"]
[Result "1-0"]
[ECO "D02"]
[WhiteElo "1071"]
[BlackElo "759"]
[Annotator "NA"]
[PlyCount "26"]
[EventDate "2024.12.23"]
[EventType "team-tourn"]
[EventRounds "7"]
[EventCountry "GER"]
[SourceTitle "playchess.com"]
[Source "ChessBase"]
[SourceQuality "1"]
[TimeControl "40/5400+30:1800+30"]

1. d4 {[%emt 0:00:01]} d5 {[%emt 0:00:10]} 2. Nf3 {[%emt 0:00:12]} Nf6 {[%emt 0:00:15]} 3. Bf4 {[%emt 0:00:09]} g6 {[%emt 0:00:29]} 4. e3 {[%emt 0:00:08]} c6 {[%emt 0:00:26]} 5. Nbd2 {[%emt 0:00:15]} Bg7 {[%emt 0:00:09]} 6. c4 {[%emt 0:00:19]} Bf5 {[%emt 0:00:45]} 7. Be2 {[%emt 0:00:19]} Nbd7 {[%emt 0:00:35]} 8. O-O {[%emt 0:00:14]} O-O {[%emt 0:00:18]} 9. Ne5 {[%emt 0:00:25]} a6 {[%emt 0:01:37]} 10. Rc1 {[%emt 0:00:27]} Nb6 {[%emt 0:00:58]} 11. c5 {[%emt 0:00:34]} Nc8 {[%emt 0:02:37]} 12. Qb3 {[%emt 0:00:36]} e6 {[%emt 0:00:34]} 13. Qxb7 {[%emt 0:01:00]} Ra7 {[%emt 0:01:57]} 1-0

[Event "DVM U12w 2024"]
[Site "Bad Homburg"]
[Date "2024.12.29"]
[Round "5"]
[White "Scarlat-Timofte, Elena"]
[Black "Klymenko, Stefaniia"]
[Result "1-0"]
[ECO "C50"]
[WhiteElo "1024"]
[BlackElo "785"]
[Annotator "NA"]
[PlyCount "117"]
[EventDate "2024.12.23"]
[EventType "team-tourn"]
[EventRounds "7"]
[EventCountry "GER"]
[SourceTitle "playchess.com"]
[Source "ChessBase"]
[SourceQuality "1"]
[TimeControl "40/5400+30:1800+30"]

1. e4 {[%emt 0:00:01]} e5 {[%emt 0:00:06]} 2. Nf3 {[%emt 0:00:12]} Nc6 {[%emt 0:00:11]} 3. Bc4 {[%emt 0:00:08]} Bc5 {[%emt 0:00:07]} 4. d3 {[%emt 0:00:10]} d6 {[%emt 0:00:08]} 5. Bg5 {[%emt 0:00:55]} Nf6 {[%emt 0:00:16]} 6. h3 {[%emt 0:00:21]} Be6 {[%emt 0:00:06]} 7. Bxe6 {[%emt 0:00:19]} fxe6 {[%emt 0:00:10]} 8. Nc3 {[%emt 0:00:34]} h6 {[%emt 0:00:29]} 9. Bd2 {[%emt 0:00:25]} O-O {[%emt 0:01:48]} 10. Nh4 {[%emt 0:00:44]} d5 {[%emt 0:01:15]} 11. Qf3 {[%emt 0:00:54]} Nd4 {[%emt 0:00:58]} 12. Qd1 {[%emt 0:00:41]} Qe8 {[%emt 0:03:42]} 13. Be3 {[%emt 0:00:36]} Qf7 {[%emt 0:06:41]} 14. Qd2 {[%emt 0:02:50]} Nh5 {[%emt 0:04:55]} 15. O-O-O {[%emt 0:00:28]} a5 {[%emt 0:02:55]} 16. Rdg1 {[%emt 0:01:05]} Rfb8 {[%emt 0:01:25]} 17. Qd1 {[%emt 0:00:28]} b5 {[%emt 0:01:47]} 18. exd5 {[%emt 0:03:06]} b4 {[%emt 0:00:56]} 19. Na4 {[%emt 0:01:06]} g6 {[%emt 0:01:52]} 20. Bxh6 {[%emt 0:00:42]} Rb5 {[%emt 0:05:11]} 21. Qg4 {[%emt 0:00:47]} Kh7 {[%emt 0:02:40]} 22. Qg5 {[%emt 0:00:42]} Qf4+ {[%emt 1:03:52]} 23. Qxf4 {[%emt 0:01:11]} Nxf4 {[%emt 0:00:00]} 24. Kd1 {[%emt 0:01:37]} Kxh6 {[%emt 0:00:00]} 25. Re1 {[%emt 0:00:38]} g5 {[%emt 0:00:00]} 26. Nf3 {[%emt 0:00:17]} Nxf3 {[%emt 0:00:00]} 27. gxf3 {[%emt 0:00:11]} Ng2 {[%emt 0:00:00]} 28. Rxe5 {[%emt 0:01:34]} exd5 {[%emt 0:00:00]} 29. Rxd5 {[%emt 0:00:44]} c6 {[%emt 0:00:00]} 30. Re5 {[%emt 0:00:26]} Bxf2 {[%emt 0:00:00]} 31. Re6+ {[%emt 0:00:15]} Kh5 {[%emt 0:00:00]} 32. Rh2 {[%emt 0:01:00]} Nf4 {[%emt 0:00:00]} 33. Rf6 {[%emt 0:01:03]} Bd4 {[%emt 0:00:00]} 34. Rxc6 {[%emt 0:00:26]} Be5 {[%emt 0:00:00]} 35. Rh1 {[%emt 0:00:53]} Kh4 {[%emt 0:00:00]} 36. Rh6+ {[%emt 0:00:25]} Kg3 {[%emt 0:00:00]} 37. h4 {[%emt 0:01:12]} Rh8 {[%emt 0:00:00]} 38. Ra6 {[%emt 0:10:27]} Rxh4 {[%emt 0:00:00]} 39. Rg1+ {[%emt 0:00:35]} Kxf3 {[%emt 0:00:00]} 40. c4 {[%emt 0:01:24]} Rg4 {[%emt 0:00:00]} 41. Rf1+ {[%emt 0:32:08]} Kg2 {[%emt 0:00:00]} 42. Re1 {[%emt 0:00:57]} Rb8 {[%emt 0:00:00]} 43. Rxe5 {[%emt 0:00:16]} Rd8 {[%emt 0:00:00]} 44. Nc5 {[%emt 0:01:00]} Nxd3 {[%emt 0:00:36]} 45. Re2+ {[%emt 0:00:47]} Nf2+ {[%emt 0:01:44]} 46. Kc2 {[%emt 0:01:38]} Rxc4+ {[%emt 0:00:46]} 47. Kb3 {[%emt 0:00:41]} Rxc5 {[%emt 0:00:32]} 48. Rf6 {[%emt 0:00:30]} a4+ {[%emt 0:03:57]} 49. Kxa4 {[%emt 0:00:11]} b3 {[%emt 0:01:26]} 50. Rfxf2+ {[%emt 0:01:12]} Kg3 {[%emt 0:00:10]} 51. Rg2+ {[%emt 0:00:10]} Kf4 {[%emt 0:00:23]} 52. Rgf2+ {[%emt 0:01:38]} Kg4 {[%emt 0:00:17]} 53. Re4+ {[%emt 0:00:21]} Kh5 {[%emt 0:00:18]} 54. Rh2+ {[%emt 0:00:16]} Kg6 {[%emt 0:00:07]} 55. Re6+ {[%emt 0:07:37]} Kf5 {[%emt 0:00:21]} 56. Ra6 {[%emt 0:01:22]} Rd4+ {[%emt 0:03:08]} 57. Ka3 {[%emt 0:01:04]} g4 {[%emt 0:00:53]} 58. Rh5+ {[%emt 0:00:39]} Kf4 {[%emt 0:00:54]} 59. Rxc5 {[%emt 0:00:08]} 1-0

[Event "DVM U12w 2024"]
[Site "Bad Homburg"]
[Date "2024.12.29"]
[Round "5"]
[White "Seyedfakhari, Elena"]
[Black "Helbig, Frieda"]
[Result "0-1"]
[ECO "B13"]
[WhiteElo "986"]
[BlackElo "1443"]
[Annotator "NA"]
[PlyCount "27"]
[EventDate "2024.12.23"]
[EventType "team-tourn"]
[EventRounds "7"]
[EventCountry "GER"]
[SourceTitle "playchess.com"]
[Source "ChessBase"]
[SourceQuality "1"]
[TimeControl "40/5400+30:1800+30"]

1. e4 {[%emt 0:00:06]} c6 {[%emt 0:00:08]} 2. d4 {[%emt 0:00:08]} d5 {[%emt 0:00:16]} 3. exd5 {[%emt 0:00:16]} cxd5 {[%emt 0:00:12]} 4. Bd3 {[%emt 0:00:11]} Nc6 {[%emt 0:00:54]} 5. c3 {[%emt 0:00:12]} Nf6 {[%emt 0:00:15]} 6. Bf4 {[%emt 0:00:21]} Bg4 {[%emt 0:01:23]} 7. Qb3 {[%emt 0:00:23]} Qd7 {[%emt 0:02:43]} 8. Nd2 {[%emt 0:00:20]} e6 {[%emt 0:01:04]} 9. Ngf3 {[%emt 0:00:30]} Be7 {[%emt 0:01:15]} 10. O-O {[%emt 0:00:21]} O-O {[%emt 0:00:14]} 11. Rfe1 {[%emt 0:00:14]} Rac8 {[%emt 0:01:00]} 12. Rad1 {[%emt 0:00:20]} Rfe8 {[%emt 0:00:23]} 13. h3 {[%emt 0:00:29]} Bh5 {[%emt 0:00:47]} 14. Re3 {[%emt 0:00:53]} 0-1